Cogmind - Beta 13 @@@ ROGUE MODE // 2024.03.31 @ 23:55:50 Player: Zaz Result: Destroyed by G-47 Trooper with Particle Gun Performance ------------- Evolutions (1) 500 Regions Visited (2) 400 Robots Destroyed (80) 400 Value Destroyed (1823) 1823 Prototype IDs (4) 80 Alien Tech Used (0) 0 Bonus (89) 89 TOTAL SCORE: 3292 Bonus ------- High Alert Combat Kills 89 Cogmind --------- Core Integrity 0/400 Matter 258/300 Energy 180/250 System Corruption 8% Temperature Cool (9) Movement Core (1450) Ox28 Location -9/Materials Parts ------- > --- POWER (1) -------- Ion Engine > --- PROPULSION (3) --- (None) > --- UTILITY (3) ------ Huge Storage Unit Hacking Suite > --- WEAPON (2) ------- Flail > --- INVENTORY (25) --- Ion Engine Ion Engine Improved Ion Engine Faulty Heavy Ion Engine Heavy Ion Engine Heavy Ion Engine Light Nuclear Core Light Treads Light Treads Compact Wheel Heat Sink Medium Matter Pod (100) Advanced Weight Redist. System Visual Processing Unit Sensor Array Seismic Detector ECM Suite Light Armor Plating High-powered Tractor Beam Heavy EM Pulse Gun Beam Rifle Grenade Launcher Mining Laser Peak State ------------ > --- POWER ------------ Improved Ion Engine > --- PROPULSION ------- Aluminum Leg Aluminum Leg Aluminum Leg > --- UTILITY ---------- Huge Storage Unit Advanced Weight Redist. System Hacking Suite > --- WEAPON ----------- Improved EM Shotgun Improved EM Shotgun > --- INVENTORY -------- Ion Engine Ion Engine Ion Engine Light Nuclear Core Light Treads Compact Wheel Heat Sink Medium Matter Pod Visual Processing Unit Sensor Array Seismic Detector ECM Suite Light Armor Plating Tractor Beam High-powered Tractor Beam Heavy EM Pulse Gun Beam Rifle Particle Gun Heavy Assault Rifle Heavy Assault Rifle Heavy Assault Rifle Light Cannon Grenade Launcher Mining Laser Flail [Rating: 21] Favorites ----------- Power Ion Engine Engine Ion Engine Propulsion Light Treads Treads Light Treads Leg Aluminum Leg Wheel Wheel Utility Huge Storage Unit Device Sensor Array Storage Huge Storage Unit Processor Signal Interpreter Hackware Hacking Suite Weapon Improved Assault Rifle Energy Gun Beam Rifle Ballistic Gun Improved Assault Rifle Launcher Grenade Launcher Impact Weapon Flail Build | -11 -10 -9 ------- Run | Yrd Mat Mat Slots Evolved 2 | . . 2 Power . | . . . Propulsion 1 | . . 1 Utility 1 | . . 1 Weapon . | . . . Parts Attached 62 | 10 17 35 Power 7 | 2 2 3 Engine 7 | 2 2 3 Core . | . . . Reactor . | . . . Propulsion 21 | 4 7 10 Treads 11 | . 5 6 Leg 8 | 4 . 4 Wheel 2 | . 2 . Hover . | . . . Flight . | . . . Utility 10 | 2 2 6 Device 6 | 2 1 3 Storage 2 | . 1 1 Processor 1 | . . 1 Hackware 1 | . . 1 Protection . | . . . Artifact . | . . . Weapon 24 | 2 6 16 Energy Gun 9 | 1 . 8 Energy Cannon . | . . . Ballistic Gun 11 | 1 5 5 Ballistic Cannon . | . . . Launcher 3 | . 1 2 Special Weapon . | . . . Impact Weapon 1 | . . 1 Slashing Weapon . | . . . Piercing Weapon . | . . . Special Melee Weapon . | . . . Unidentified Prototypes 2 | . 1 1 Parts Lost 12 | . 1 11 Power 1 | . . 1 Propulsion 6 | . . 6 Utility 1 | . . 1 Weapon 4 | . 1 3 Highest Loss Streak 3 | . 1 3 To Critical Strikes . | . . . Average Slot Usage (%) 96 | . 98 94 Engine 12 | . 14 10 Treads 19 | . 20 17 Leg 8 | . 6 10 Device 13 | . 14 10 Storage 12 | . 13 10 Processor 2 | . . 5 Hackware 2 | . . 5 Energy Gun 8 | . 3 13 Ballistic Gun 16 | . 24 7 Naked Turns . | . . . Heaviest Build 95 | 11 92 95 Greatest Support 60 | 20 40 60 Greatest Overweight (x) 4 | . 4 4 Average Overweight (x) 2 | . 2 2 Largest Inventory Capacity 25 | 5 25 25 Average Capacity 23 | 5 23 24 Most Carried 25 | 5 25 25 Average Carried 19 | 2 16 23 Final Capacity 25 | 5 25 25 Final Carried 23 | 5 22 23 Class Distribution -------------------- 68% | Mutant 31% | Scavenger-Mutant Dominant Class ---------------- Mutant | -10/Materials Scavenger-Mutant | -9/Materials Resources | -11 -10 -9 ----------- Run | Yrd Mat Mat Matter Collected 1525 | 303 501 721 Remotely . | . . . Salvage Created 2867 | 102 575 2190 Parts 189 | 13 50 126 Haulers Intercepted 2 | . . 2 Recyclers Shooed 4 | . 1 3 Parts Field Recycled . | . . . Retrieved Matter . | . . . Parts Self-Destructed . | . . . Prevented . | . . . Kills | -11 -10 -9 ------- Run | Yrd Mat Mat Combat Hostiles Destroyed 57 | 1 15 41 Guns 53 | 1 14 38 AOE 4 | . 1 3 Classes Destroyed 12 | 3 3 6 Worker 4 | 1 1 2 Builder 2 | . . 2 Tunneler 2 | 2 . . Hauler 2 | . . 2 Recycler 8 | . 1 7 Mechanic 1 | . . 1 Operator 1 | . . 1 Watcher 6 | . 3 3 Swarmer 16 | . 8 8 Grunt 32 | 1 7 24 Duelist 2 | . . 2 Sentry 7 | . . 7 Best Kill Streak 12 | 2 3 12 Combat Bots Only 4 | 1 3 4 Max Kills in Single Turn 2 | 1 2 2 Gunslinging 1 | . 1 . Exploded 1 | . 1 1 Melee . | . . . Uniques/NPCs Destroyed . | . . . Combat | -11 -10 -9 -------- Run | Yrd Mat Mat Hostile Shots Fired 372 | 3 87 282 Missed 133 | . 31 102 Damage Taken 2821 | 32 524 2265 Core 478 | . 76 402 Absorbed by Shields . | . . . Regen/Repaired (Parts) 319 | . 69 250 Core Remaining (%) 84 | 100 69 . Volleys Fired 219 | 7 58 154 Largest 2 | 2 2 2 Hottest 121 | 60 60 121 Shots Fired 388 | 8 89 291 Gun 373 | 8 88 277 Cannon . | . . . Launcher 15 | . 1 14 Special . | . . . Kinetic 185 | 1 61 123 Thermal 102 | . 8 94 Explosive 15 | . 1 14 Electromagnetic 86 | 7 19 60 Robot Hit Streak 12 | 3 10 12 Robot Miss Streak 5 | 1 4 5 Penetration Max . | . . . Secondary Targets 9 | . 3 6 Max Gunslinging Chain 1 | . 1 1 Shots Hit Robots 226 | 6 47 173 Core Hits 125 | 4 28 93 Critical Kills . | . . . Critical Parts Destroyed . | . . . Critical Strikes 6 | . . 6 Burn 5 | . . 5 Corrupt 1 | . . 1 Melee Attacks 1 | . . 1 Impact 1 | . . 1 Slashing . | . . . Piercing . | . . . Sneak Attacks . | . . . Combat Hostiles . | . . . Follow-up Attacks . | . . . Damage Inflicted 4188 | 98 818 3272 Guns 3478 | 98 702 2678 Cannons . | . . . Explosions 705 | . 116 589 Melee . | . . . Ramming 5 | . . 5 Kinetic 1832 | 14 479 1339 Thermal 1148 | . 175 973 Explosive 364 | . . 364 Electromagnetic 839 | 84 164 591 Impact . | . . . Slashing . | . . . Piercing . | . . . Highest Corruption 8 | . . 8 Average Corruption 6 | . . 6 Corruption Purged . | . . . Corruption Blocked . | . . . Overload Shots . | . . . Overflow Damage . | . . . Projectiles . | . . . Explosions . | . . . Melee . | . . . Knockbacks . | . . . Impact . | . . . Kinetic . | . . . Secondary . | . . . Self-Inflicted Damage 116 | . 36 80 Shots 4 | . 1 3 Rammed 1 | . . 1 Targets Rammed 2 | . . 2 Kicked 1 | . . 1 Crushed . | . . . Highest Temperature 324 | 12 54 324 Average Temperature 82 | 10 21 88 Received Heat Transfer 834 | 18 126 690 Effects 1 | . . 1 Interference 1 | . . 1 Siege Activations . | . . . Robots Corrupted . | . . . Combat Hostiles . | . . . Parts Fried 3 | . 1 2 Impact Corruptions . | . . . Robots Melted . | . . . Combat Hostiles . | . . . Parts Melted 6 | . 1 5 Heat Transferred 2646 | . 272 2374 Parts Sabotaged . | . . . Parts Stolen . | . . . Parts Stripped . | . . . Power Chain Reactions 6 | . 2 4 Alert | -11 -10 -9 ------- Run | Yrd Mat Mat Peak Influence 703 | 35 150 703 Initial 57 | . 22 57 Average 166 | 11 47 322 Maximum Alert Level 3 | . . 3 Low Security (%) 68 | 100 100 27 Level 1 21 | . . 50 Level 2 9 | . . 22 Level 3 . | . . . Level 4 . | . . . Level 5 . | . . . High Security . | . . . Max Security . | . . . Squads Dispatched 13 | . 5 8 Investigation 9 | . 4 5 Extermination . | . . . Reinforcement 3 | . 1 2 Assault 1 | . . 1 Garrison . | . . . Intercept . | . . . Searches Triggered . | . . . Construction Impeded 1 | . . 1 Haulers Reinforced . | . . . Active Scanning Responses . | . . . Cargo Convoy Interrupts . | . . . Stealth | -11 -10 -9 --------- Run | Yrd Mat Mat Distress Signals 5 | . . 5 Communications Jammed . | . . . Distress Signals . | . . . Times Spotted 98 | 1 24 73 Peak Tracking Total 8 | 1 3 8 Tactical Retreats 2 | . 1 1 Traps | -11 -10 -9 ------- Run | Yrd Mat Mat Traps Triggered 3 | . 3 . Indirectly . | . . . Trap Hack Attempts . | . . . Triggered . | . . . Disarmed . | . . . Reprogrammed . | . . . Reused . | . . . Traps Extracted . | . . . Installed . | . . . Triggered 1 | . . 1 Machines | -11 -10 -9 ---------- Run | Yrd Mat Mat Machines Disabled 5 | . 3 2 Max in Single Turn 2 | . 2 1 Machines Repaired . | . . . Machines Dismantled . | . . . Machines Sabotaged . | . . . Overloaded Fab Kills . | . . . Hacking | -11 -10 -9 --------- Run | Yrd Mat Mat Machines Accessed 15 | . 8 7 Terminals 10 | . 5 5 Fabricators . | . . . Repair Stations 2 | . 1 1 Recycling Units 3 | . 2 1 Scanalyzers . | . . . Garrison Access . | . . . Total Hacks 86 | . 50 36 Successful 67 | . 37 30 Failed 19 | . 13 6 Catastrophic 2 | . 2 . Database Lockouts . | . . . Manual 1 | . . 1 Terminals 41 | . 16 25 Fabricators . | . . . Repair Stations 14 | . 8 6 Recycling Units 31 | . 26 5 Scanalyzers . | . . . Garrison Access . | . . . Terminal Hacks 29 | . 9 20 Record 15 | . 3 12 Robot Analysis 1 | . 1 . Prototype ID Bank 1 | . . 1 Emergency Access Points 1 | . . 1 Alert Level 1 | . 1 . Locate Traps 1 | . . 1 Maintenance Status 2 | . 1 1 Investigation Status 1 | . 1 . Reinforcement Status 1 | . . 1 Recall Investigation 1 | . . 1 Hauler Manifests 2 | . 1 1 Zone Layout 2 | . 1 1 Fabricator Hacks . | . . . Repair Station Hacks 11 | . 6 5 Scan Component 6 | . 3 3 Repair 4 | . 2 2 Refit 1 | . 1 . Recycling Unit Hacks 27 | . 22 5 Recycle Component 21 | . 19 2 Process 1 | . 1 . Report Inventory 2 | . 1 1 Retrieve Matter 1 | . . 1 Retrieve Components 2 | . 1 1 Scanalyzer . | . . . Garrison Access Hacks . | . . . Unauthorized Hacks . | . . . Terminals . | . . . Fabricators . | . . . Repair Stations . | . . . Recycling Units . | . . . Scanalyzers . | . . . Garrison Access . | . . . Data Cores Recovered 1 | . . 1 Used . | . . . Hacking Detections 15 | . 8 7 Full Trace Events 9 | . 4 5 Feedback Events . | . . . Feedback Blocked . | . . . Robot Schematics Acquired . | . . . Robots Built . | . . . Authchips . | . . . Time . | . . . Total Robot Build Rating . | . . . Part Schematics Acquired . | . . . Parts Built . | . . . Authchips . | . . . Time . | . . . Total Part Build Rating . | . . . Parts Repaired 4 | . 2 2 Time 154 | . 77 77 Parts Recycled 21 | . 19 2 Recycled Matter . | . . . Retrieved Matter 217 | . . 217 Retrieved Components 13 | . 3 10 Parts Scanalyzed . | . . . Part Schematics Acquired . | . . . Parts Damaged . | . . . Bothacking | -11 -10 -9 ------------ Run | Yrd Mat Mat Used RIF Installer . | . . . Robots Hacked . | . . . Non-combat . | . . . Combat . | . . . Robot Hacks Applied . | . . . Relay Couplers Released . | . . . Fabnet Peak Effective % . | . . . Robots Rewired . | . . . Allies Hacked . | . . . Hacks Repelled . | . . . Allies | -11 -10 -9 -------- Run | Yrd Mat Mat Total Allies . | . . . Largest Group . | . . . Highest-Rated Group . | . . . Highest-Rated Ally . | . . . Total Orders . | . . . Ally Attacks . | . . . Total Damage . | . . . Kills . | . . . Allies Corrupted . | . . . Allies Melted . | . . . Intel | -11 -10 -9 ------- Run | Yrd Mat Mat Robot Analysis Total 1 | . 1 . Derelict Logs Recovered . | . . . Drone Launches . | . . . Drone Recoveries . | . . . Exploration | -11 -10 -9 ------------- Run | Yrd Mat Mat Turns Passed 7499 | 159 4072 3268 Spaces Moved 2171 | 103 1234 834 Core 27 | 27 . . Treads 1409 | . 917 492 Legs 726 | 76 308 342 Wheels 9 | . 9 . Hover . | . . . Flight . | . . . Fastest Speed 50 | 50 120 160 Average Speed 298 | 101 310 304 Slowest Speed 480 | 120 480 400 Overloaded Moves . | . . . Propulsion Burnouts . | . . . Robots Hopped . | . . . Cave-ins Triggered . | . . . Exploration Rate (%) 50 | 4 96 52 Regions Visited 2 Branch Regions . Pre-discovered Areas . | . . . Known Exits Taken . | . . . Unknown Exits Taken 2 | 1 1 . Scrap Searched . | . . . Spaces Dug . | . . . Terrain Destroyed 70 | . 8 62 Melee . | . . . Projectile . | . . . AOE 70 | . 8 62 Terrain Rammed . | . . . Walls Destroyed . | . . . Machines Disabled . | . . . Actions | -11 -10 -9 --------- Run | Yrd Mat Mat Total 2800 | 152 1383 1265 Wait 209 | 15 28 166 Move 2169 | 102 1233 834 Hop . | . . . Pick Up 107 | 14 43 50 Fast Attach 2 | . . 2 Attach 25 | 9 5 11 Detach 4 | 2 1 1 Swap 35 | 1 12 22 Drop 27 | 2 3 22 Fire 219 | 7 58 154 Melee 1 | . . 1 Ram . | . . . Kick 1 | . . 1 Crush 1 | . . 1 Escape Stasis . | . . . Rewire . | . . . Trap . | . . . Miscellaneous . | . . . Route ------- -11/Scrapyard -10/Materials (discovered 4 exits: *Mat x3 / [*Min]) -9/Materials (discovered 3 exits: [*Mat] / [*Min] / [*Sto]) History --------- Turn | Location | Event 2 | -11/Scrapyard | Met Revision 17 95 | -11/Scrapyard | Discovered new exit (range 8) 160 | -11/Scrapyard | Entered Materials 318 | -10/Materials | Build established: Mutant 1068 | -10/Materials | Discovered new exit (range 13) 1368 | -10/Materials | Discovered new exit (range 9) 2953 | -10/Materials | Discovered new exit (range 8) 3422 | -10/Materials | Repaired Imp. Assault Rifle 3448 | -10/Materials | Repaired Lgt. Treads 3719 | -10/Materials | Discovered new exit (range 8) 4232 | -10/Materials | Entered another Materials area 4232 | -9/Materials | Evolved 2 slots: Propulsion x1, Utility x1 4361 | -9/Materials | Repaired Imp. Assault Rifle 4387 | -9/Materials | Repaired Huge Storage Unit 5119 | -9/Materials | Build established: Scavenger-Mutant 5273 | -9/Materials | Discovered new exit (range 10) 5479 | -9/Materials | Core integrity fell below 50% 6625 | -9/Materials | Discovered new exit (range 10) 7402 | -9/Materials | Discovered new exit (range 12) 7432 | -9/Materials | First assault squad dispatched 7446 | -9/Materials | Core integrity fell below 20% 7447 | -9/Materials | Build established: Mutant 7500 | -9/Materials | Destroyed by G-47 Trooper with Particle Gun Last Messages --------------- W-16 Scout destroyed. K-01 Serf destroyed. K-01 Serf collects debris. Kicked K-01 Serf. K-01 Serf collects debris. C-30 ARC bursts open, deploying its payload. G-47 Trooper unfolds itself. B-36 Bruiser unfolds itself. G-34 Mercenary unfolds itself. I-25 Savior unfolds itself. Aluminum Leg destroyed. System corrupted by crushing effect (+3). Adv. Weight Redist. System destroyed. System corrupted by crushing effect (+5). Hvy. Assault Rifle severed. Hvy. Assault Rifle destroyed. Bump into an enemy to attack with the active melee weapon. Even while active, melee weapons do not fire together with ranged weapons in the same volley. L-31 Rogue suffers critical hit (Burn). [Achievement: First Step to Greatness] Map ----- +----------------------------------------------------+ | # """ # """"" ###### ^""" #??# | | # "T" # #????# ######### """ #??# | | + # ""T"" #????### ###???????# """ ##### | | # # """"" #??????# % #?????????# ## | | # #########????? # %##????????#^ | | ##############??????# # [ # #???????# | | ######### T ##########!% ## ??????#^^" [ | | # # # # % ! ?????# T % ## | | # # # # # ![ ????# "= * ### | | + # / %% < ???# *!!#?# | | # # # ### %# ??# !%*#?# | | # # # ### # #?# ###T#%*!#?# | | ################+#### ## ## #####?# ??### #?# | | #####????????# ]# # # # ##?????# ????# #?# | | #????????# ### #####??????# ???## ### | | """ #????????# !# #????????# ???# ## | | "T" #????????# """ ?# ! #????????# ???# ## | | ??????????????????????+ #????????# ???# ## | | ??????????????????????#k ??????????????# #? | | ??????????????????????? ??????????????# #? | | ???????????????????????# #??????????????### ###? | | ???????????????????????# #????????????????# #??? | | ???????????????????????# o #????????????????# #??? | | ???????????????????????# #?????????#+######+#??? | | ??????????#######?????## ##????????# =%=#??? | | ??????????# ##### b@ #????? ??# % #??? | | ????????? % g !l! ######+###!= [ #??? | | ????????? < % Yig!**[ # ! #??? | | ????????? [!%%* +% #??? | | ??????????#" "#####[!a" #[ #??? | | ???????????" !"! ?######[! # [ #??? | | ??????????????????# # %= u # #??? | | ??????????????????# ] /t! ! # #??? | | ??????????????????# # ##+#######??? | | ??????????????????# #= """ #????????? | | ??????????????????# [# ! """"" #????????? | | ??????????????????# #! """ #????????? | | ??????????????????# + """" #????????? | | ??????????????????# # =""" #????????? | | ??????????????????# # !=* #????????? | | ?????????????########+## k %=%/ #????????? | | ?????????????# # ####### +????????? | | ?????????????# # #??#### ##????????? | | ?????????????# + #??# [ #?????????? | | ?????????????# # #??#!!!!]]#?????????? | | ?????????????# # #??#!! !]]#?????????? | | ?????????????# # #??########?????????? | | ?????????????######## ########????????????? | | ????????????????????# # #????????????? | | ????????????????????# # #????????????? | +----------------------------------------------------+ Best States ------------- Heat Dissipation 28 Energy Generation 12 Energy Capacity 265 Matter Stores 300 Matter Capacity 300 Sight Range 16 Robot Scan Range 14 Terrain Scan Range 16 Terrain Scan Density 10 ECM Strength 1 Additional Mass Support 9 Evasion (%) 55 Recoil Reduction 3 Offensive Hacking 10 Item Schematics ----------------- None Robot Schematics ------------------ None Fabricated ------------ Nothing Alien Tech Used ----------------- None Achievements -------------- Crack Shot First Step to Greatness Librarian Loot Pinata One Hack Too Far Part-time Mechanic Risk Taker Shopping List Significant Disruption Storm Trooper Uninvited Guest Challenges ------------ None Game ------ Seed ChargeDefenseDeconstructor Manual? 0 Play Time 01:27:16 Cumulative 1.4 hours Start 2024.03.31 @ 22:21:41 End 2024.03.31 @ 23:55:50 Sessions 2 Manual Loads 0 Difficulty Rogue Special Mode None Game No. 1 Rogue 1 Adventurer 0 Explorer 0 Win Type - Total 0 Types 0/0/0/0/0/0/0/0/0 Lore% 1 Gallery% 2 Achievement% 4 Wizard Run 0 Options --------- Layout 0 ASCII 0 Keyboard 0 Movement Arrows Keybinds 0 Fullscreen 2 Font 20/SmallcapsGlow Map View 70x30 Zoom Use 21% Tactical HUD 0 Map Filters NONE Filters NONE Steam 1 RUN: 98682bdf-ec8e-4a1b-9b02-1d2e3b4fad13